Cogmind - Beta 14 @@@ ROGUE MODE // 2024.10.19 @ 22:04:21 Player: SgtBloody Result: Destroyed by Y-45 Defender with Heavy Assault Rifle Performance ------------- Evolutions (1) 500 Regions Visited (2) 400 Robots Destroyed (20) 100 Value Destroyed (391) 391 Prototype IDs (0) 0 Alien Tech Used (0) 0 Bonus (0) 0 TOTAL SCORE: 1391 Bonus ------- None Cogmind --------- Core Integrity 0/400 Matter 65/300 Energy 100/100 System Corruption 6% Temperature Cool (9) Movement Core (200) Ox3 Location -9/Materials Parts ------- > --- POWER (2) -------- (None) > --- PROPULSION (2) --- (None) > --- UTILITY (3) ------ Medium Storage Unit > --- WEAPON (2) ------- (None) > --- INVENTORY (10) --- Flight Unit Heat Sink Sensor Array Improved Targeting Computer Improved Targeting Computer ECM Suite Medium Laser Grenade Launcher Peak State ------------ > --- POWER ------------ Ion Engine Ion Engine > --- PROPULSION ------- Improved Treads Aluminum Leg > --- UTILITY ---------- Medium Storage Unit ECM Suite Power Shielding > --- WEAPON ----------- Heavy Assault Rifle Grenade Launcher > --- INVENTORY -------- Medium Laser Grenade Launcher [Rating: 11] Favorites ----------- Power Ion Engine Engine Ion Engine Propulsion Aluminum Leg Treads Improved Treads Leg Aluminum Leg Utility Power Shielding Device Terrain Scanner Storage Medium Storage Unit Protection Power Shielding Weapon Grenade Launcher Energy Gun Medium Laser Ballistic Gun Assault Rifle Launcher Grenade Launcher Build | -11 -10 -9 ------- Run | Yrd Mat Mat Slots Evolved 2 | . . 2 Power 1 | . . 1 Propulsion . | . . . Utility 1 | . . 1 Weapon . | . . . Parts Attached 37 | 6 10 21 Power 8 | 1 3 4 Engine 8 | 1 3 4 Core . | . . . Reactor . | . . . Propulsion 9 | 3 2 4 Treads 1 | . . 1 Leg 8 | 3 2 3 Wheel . | . . . Hover . | . . . Flight . | . . . Utility 8 | . 3 5 Device 6 | . 2 4 Storage 1 | . . 1 Processor . | . . . Hackware . | . . . Protection 1 | . 1 . Artifact . | . . . Weapon 12 | 2 2 8 Energy Gun 1 | 1 . . Energy Cannon . | . . . Ballistic Gun 5 | 1 1 3 Ballistic Cannon . | . . . Launcher 6 | . 1 5 Special Weapon . | . . . Impact Weapon . | . . . Slashing Weapon . | . . . Piercing Weapon . | . . . Special Melee Weapon . | . . . Unidentified Prototypes . | . . . Parts Lost 9 | . . 9 Power 2 | . . 2 Propulsion 2 | . . 2 Utility 3 | . . 3 Weapon 2 | . . 2 Highest Loss Streak 6 | . . 6 To Critical Strikes 1 | . . 1 Average Slot Usage (%) 81 | . 93 74 Engine 15 | . 14 16 Treads 1 | . . 2 Leg 19 | . 28 13 Device 10 | . 8 11 Storage 2 | . . 4 Protection 10 | . 13 8 Ballistic Gun 11 | . 14 9 Launcher 10 | . 14 8 Peak Build Rating 11 | 5 7 11 Average Rating 6 | 4 6 7 On Entrance 4 | . 5 7 Naked Turns . | . . . Heaviest Build 29 | 7 13 29 Greatest Support 29 | 20 20 29 Greatest Overweight (x) 5 | . . 5 Average Overweight (x) . | . . . Largest Inventory Capacity 10 | 5 5 10 Average Capacity 6 | 5 5 7 Most Carried 8 | 2 5 8 Average Carried 4 | . 3 4 Final Capacity 10 | 5 5 10 Final Carried 8 | . 5 8 Class Distribution -------------------- 100% | Mutant Dominant Class ---------------- Mutant | -10/Materials Mutant | -9/Materials Resources | -11 -10 -9 ----------- Run | Yrd Mat Mat Matter Collected 562 | 269 101 192 Remotely . | . . . Salvage Created 462 | 30 104 328 Parts 33 | 1 11 21 Haulers Intercepted . | . . . Recyclers Shooed 2 | . . 2 Parts Field Recycled . | . . . Retrieved Matter . | . . . Parts Self-Destructed . | . . . Prevented . | . . . Kills | -11 -10 -9 ------- Run | Yrd Mat Mat Combat Hostiles Destroyed 17 | 1 4 12 Melee 1 | . . 1 Guns 6 | 1 3 2 AOE 10 | . 1 9 Classes Destroyed 7 | 1 2 4 Builder 1 | . . 1 Recycler 1 | . . 1 Watcher 1 | . 1 . Swarmer 10 | . 3 7 Grunt 5 | 1 1 3 Brawler 1 | . . 1 Sentry 1 | . . 1 Best Kill Streak 4 | 1 3 4 Combat Bots Only 3 | 1 3 3 Max Kills in Single Turn 4 | 1 1 4 Gunslinging . | . . . Exploded 3 | . 1 3 Melee 1 | . . 1 Uniques/NPCs Destroyed . | . . . Combat | -11 -10 -9 -------- Run | Yrd Mat Mat Hostile Shots Fired 167 | 12 13 142 Missed 52 | 5 6 41 Damage Taken 1358 | 77 88 1193 Core 438 | . 29 409 Absorbed by Shields . | . . . Redirected to Shielding 24 | . 5 19 Core Remaining (%) 94 | 100 88 . Volleys Fired 52 | 10 14 28 Largest 2 | 2 2 2 Hottest 70 | 70 50 53 Shots Fired 68 | 13 18 37 Gun 54 | 13 15 26 Cannon . | . . . Launcher 14 | . 3 11 Special . | . . . Kinetic 44 | 3 15 26 Thermal 10 | 10 . . Explosive 14 | . 3 11 Electromagnetic . | . . . Robot Hit Streak 4 | 3 4 4 Robot Miss Streak 4 | 2 2 4 Penetration Max . | . . . Secondary Targets . | . . . Shots Hit Robots 34 | 7 9 18 Core Hits 32 | 2 5 25 Critical Kills . | . . . Critical Parts Destroyed . | . . . Critical Strikes 1 | 1 . . Burn 1 | 1 . . Melee Attacks . | . . . Impact . | . . . Slashing . | . . . Piercing . | . . . Sneak Attacks . | . . . Combat Hostiles . | . . . Follow-up Attacks . | . . . Damage Inflicted 1135 | 113 159 863 Guns 335 | 113 85 137 Cannons . | . . . Explosions 789 | . 74 715 Melee . | . . . Ramming 11 | . . 11 Kinetic 235 | 13 85 137 Thermal 100 | 100 . . Explosive 789 | . 74 715 Electromagnetic . | . . . Impact . | . . . Slashing . | . . . Piercing . | . . . Highest Corruption 6 | . 2 6 Average Corruption 5 | . 2 5 Corruption Purged . | . . . Corruption Blocked . | . . . Effects 15 | . 2 13 Message Errors 2 | . 1 1 Matter Fused 3 | . . 3 Heat Flow Errors 2 | . . 2 Parts Rejected 1 | . . 1 Parts Fused 1 | . . 1 Data Loss (minor) 3 | . . 3 Misfires 1 | . 1 . Weapon Failures 2 | . . 2 Overload Shots . | . . . Overflow Damage 11 | . . 11 Projectiles . | . . . Explosions 11 | . . 11 Melee . | . . . Knockbacks . | . . . Impact . | . . . Kinetic . | . . . Secondary . | . . . Self-Inflicted Damage 38 | . 11 27 Shots 2 | . 1 1 Rammed 8 | . . 8 Targets Rammed 8 | . . 8 Kicked . | . . . Crushed . | . . . Highest Temperature 272 | 139 2 272 Average Temperature 78 | 70 2 86 Received Heat Transfer 300 | 42 6 252 Effects 2 | . . 2 Interference 2 | . . 2 Siege Activations . | . . . Robots Corrupted . | . . . Combat Hostiles . | . . . Parts Fried . | . . . Impact Corruptions . | . . . Robots Melted . | . . . Combat Hostiles . | . . . Parts Melted 2 | 2 . . Heat Transferred 370 | 370 . . Parts Sabotaged . | . . . Parts Stolen . | . . . Parts Stripped . | . . . Power Chain Reactions . | . . . Alert | -11 -10 -9 ------- Run | Yrd Mat Mat Peak Influence 181 | 20 152 181 Initial 13 | . 13 5 Average 64 | 5 81 64 Maximum Alert Level . | . . . Low Security (%) 100 | 100 100 100 Level 1 . | . . . Level 2 . | . . . Level 3 . | . . . Level 4 . | . . . Level 5 . | . . . High Security . | . . . Max Security . | . . . Squads Dispatched 1 | . . 1 Investigation . | . . . Extermination . | . . . Reinforcement 1 | . . 1 Assault . | . . . Garrison . | . . . Intercept . | . . . Searches Triggered . | . . . Construction Impeded . | . . . Haulers Reinforced . | . . . Active Scanning Responses . | . . . Cargo Convoy Interrupts . | . . . Stealth | -11 -10 -9 --------- Run | Yrd Mat Mat Distress Signals 1 | . 1 . Communications Jammed . | . . . Distress Signals . | . . . Times Spotted 27 | 1 7 19 Peak Tracking Total 4 | 1 4 4 Tactical Retreats 1 | . . 1 Traps | -11 -10 -9 ------- Run | Yrd Mat Mat Traps Triggered 6 | . 2 4 Indirectly . | . . . Trap Hack Attempts . | . . . Triggered . | . . . Disarmed . | . . . Reprogrammed . | . . . Reused . | . . . Traps Extracted . | . . . Installed . | . . . Triggered . | . . . Machines | -11 -10 -9 ---------- Run | Yrd Mat Mat Machines Disabled . | . . . Max in Single Turn . | . . . Machines Repaired . | . . . Machines Dismantled . | . . . Machines Sabotaged . | . . . Overloaded Fab Kills . | . . . Hacking | -11 -10 -9 --------- Run | Yrd Mat Mat Machines Accessed 2 | . 1 1 Terminals 2 | . 1 1 Fabricators . | . . . Repair Stations . | . . . Recycling Units . | . . . Scanalyzers . | . . . Garrison Access . | . . . Total Hacks 3 | . 1 2 Successful 3 | . 1 2 Failed . | . . . Catastrophic . | . . . Database Lockouts . | . . . Manual . | . . . Terminals 3 | . 1 2 Fabricators . | . . . Repair Stations . | . . . Recycling Units . | . . . Scanalyzers . | . . . Garrison Access . | . . . Terminal Hacks 3 | . 1 2 Record 3 | . 1 2 Fabricator Hacks . | . . . Repair Station Hacks . | . . . Recycling Unit Hacks . | . . . Scanalyzer . | . . . Garrison Access Hacks . | . . . Unauthorized Hacks . | . . . Terminals . | . . . Fabricators . | . . . Repair Stations . | . . . Recycling Units . | . . . Scanalyzers . | . . . Garrison Access . | . . . Data Cores Recovered . | . . . Used . | . . . Hacking Detections 1 | . . 1 Full Trace Events . | . . . Feedback Events . | . . . Feedback Blocked . | . . . Robot Schematics Acquired . | . . . Robots Built . | . . . Authchips . | . . . Time . | . . . Total Robot Build Rating . | . . . Part Schematics Acquired . | . . . Parts Built . | . . . Authchips . | . . . Time . | . . . Total Part Build Rating . | . . . Parts Repaired . | . . . Time . | . . . Parts Recycled . | . . . Recycled Matter . | . . . Retrieved Matter . | . . . Retrieved Components . | . . . Parts Scanalyzed . | . . . Part Schematics Acquired . | . . . Parts Damaged . | . . . Bothacking | -11 -10 -9 ------------ Run | Yrd Mat Mat Used RIF Installer . | . . . Robots Hacked . | . . . Non-combat . | . . . Combat . | . . . Robot Hacks Applied . | . . . Relay Couplers Released . | . . . Fabnet Peak Effective % . | . . . Robots Rewired . | . . . Allies Hacked . | . . . Hacks Repelled . | . . . Allies | -11 -10 -9 -------- Run | Yrd Mat Mat Total Allies . | . . . Largest Group . | . . . Highest-Rated Group . | . . . Highest-Rated Ally . | . . . Total Orders . | . . . Ally Attacks . | . . . Total Damage . | . . . Kills . | . . . Allies Corrupted . | . . . Allies Melted . | . . . Intel | -11 -10 -9 ------- Run | Yrd Mat Mat Robot Analysis Total . | . . . Derelict Logs Recovered . | . . . Drone Launches . | . . . Drone Recoveries . | . . . Exploration | -11 -10 -9 ------------- Run | Yrd Mat Mat Turns Passed 1259 | 120 447 692 Spaces Moved 753 | 82 300 371 Core 84 | 18 . 66 Treads 32 | . . 32 Legs 637 | 64 300 273 Wheels . | . . . Hover . | . . . Flight . | . . . Fastest Speed 50 | 50 120 120 Average Speed 131 | 104 120 147 Slowest Speed 300 | 120 120 300 Overloaded Moves . | . . . Propulsion Burnouts . | . . . Robots Hopped . | . . . Cave-ins Triggered . | . . . Exploration Rate (%) 26 | 7 51 22 Regions Visited 2 Branch Regions . Pre-discovered Areas . | . . . Known Exits Taken . | . . . Unknown Exits Taken 2 | 1 1 . Scrap Searched . | . . . Spaces Dug . | . . . Terrain Destroyed 92 | . 27 65 Melee . | . . . Projectile . | . . . AOE 92 | . 27 65 Terrain Rammed . | . . . Walls Destroyed . | . . . Machines Disabled . | . . . Actions | -11 -10 -9 --------- Run | Yrd Mat Mat Total 936 | 102 369 465 Wait 48 | . 28 20 Move 751 | 81 299 371 Hop . | . . . Pick Up 25 | 4 11 10 Fast Attach 13 | 2 2 9 Attach 11 | 3 1 7 Detach 3 | . . 3 Swap 13 | 1 7 5 Drop 12 | 1 7 4 Fire 52 | 10 14 28 Melee . | . . . Ram 8 | . . 8 Kick . | . . . Crush . | . . . Escape Stasis . | . . . Rewire . | . . . Trap . | . . . Miscellaneous . | . . . Route ------- -11/Scrapyard -10/Materials (discovered 3 exits: *Mat x2 / [*Min]) -9/Materials History --------- Turn | Location | Event 2 | -11/Scrapyard | Met Revision 17 58 | -11/Scrapyard | Discovered new exit (range 8) 121 | -11/Scrapyard | Entered Materials 317 | -10/Materials | Build established: Mutant 433 | -10/Materials | Discovered new exit (range 9) 466 | -10/Materials | Discovered new exit (range 16) 539 | -10/Materials | Discovered new exit (range 16) 568 | -10/Materials | Entered another Materials area 568 | -9/Materials | Evolved 2 slots: Power x1, Utility x1 1170 | -9/Materials | Core integrity fell below 50% 1191 | -9/Materials | Lost 6 parts (2p1n1u2w) 1237 | -9/Materials | Core integrity fell below 20% 1260 | -9/Materials | Destroyed by Y-45 Defender with Heavy Assault Rifle Last Messages --------------- Slammed into S-10 Pest. IHCLYJYO A4Q/EFC48J7D1DU2E8JLRZCF Slammed into S-10 Pest. Destabilizing: Core damaged (-16). Slammed into S-10 Pest. S-10 Pest destroyed. [Achievement: Fist Fight] Acquired 20 matter. Acquired Flight Unit. Acquired Sensor Array. Critical hit (Burn: +37). System corrupted: Component data lost. O-16 Technician uses terminal to summon reinforcements. ALERT: Hostiles spotted, dispatching reinforcements to Terminal M001. O-16 Technician locks terminal. [Achievement: Uninvited Guest] U-05 Engineer lays Concrete. [Achievement: First Step to Greatness] Map ----- +----------------------------------------------------+ | ???????????????????????????## ! ##! #??#???# | | ????????????????????????#???# /## """" #??????# | | ???????????????????????????## ## ""S"" ##?????# | | ???????????????????????????# # "" "" #??????# | | ???????????????????? ??????# # #????#?# | | ???????????????????????????# T + """ #??????# | | ???????????????????#? ?????# # """ #?#????# | | ??????????????????????????## # * """ #??#???# | | ?????????????????????? ????## ## #??????# | | ??????????????????????????#?# ############?#???# | | ????????????????????????????# #?#??#???#???????# | | ????????????????????????????# ################## | | ???????????????????#????#??## | | ???????????????????????#???## ################## | | ???????????????????????#???## ########?#?#????## | | ??? ??????????????????#?### # #?????????# | | ??" ???????????????????### # #?????????# | | ??" ???????????????????# # # """ ##?????#??# | | """ ???????????? ???#?# # + """ #?????????? | | ?????????????????#### # """ #?????????? | | /= ????????????????# # # #?????????? | | /= "???????????######## ########?????????? | | #######??#?# ## # # """" #?????????? | | # #############% # """" #?????????? | | t =* # """" #????????#? | | % @ %% =+ #?????????? | | # % % Y % # ! #?????????? | | ?? #####w ############# #[ #?????????? | | ??????????## ##????## # = ########?????????? | | ???????????# ############## #????????????????? | | ???????????# + [ # #?#??#???????????? | | ???????????# ####### # #????????????????? | | ???????????# #?????# + #????????????????? | | ????????#####/#####??# # #????????????????? | | ????????# #??# # #????????????????? | | ????????# #??# # #????????????????? | | ????????# ########### #????????????????? | | ????????# / #????????????????? | | ????????# #####+##### #????????????????? | | ????????# !! #?# ## #????????????????? | | ????????# !!! #?# ## #????????????????? | | ????????# !! #?# ## #????????????????? | | ????????####### ###?# ## #????????????????? | | ??????????????###???# # ????????????????? | | ????????????????????# # ????????????????? | | ????????????????????######## T ????????????????? | | ???????????????????????????? ????????????????? | | ???????????????????????????? ? ????????????????? | | ?????????????????????????????????????????????????? | | ?????????????????????????????????????????????????? | +----------------------------------------------------+ Best States ------------- Heat Dissipation 28 Energy Generation 15 Energy Capacity 400 Matter Stores 300 Matter Capacity 300 Sight Range 16 Robot Scan Range 14 Terrain Scan Range 14 Terrain Scan Density 10 ECM Strength 1 Additional Mass Support 6 Power Shielding 33 Evasion (%) 55 Recoil Reduction 1 Item Schematics ----------------- None Robot Schematics ------------------ None Fabricated ------------ Nothing Alien Tech Used ----------------- None Achievements -------------- First Step to Greatness Fist Fight Oops Uninvited Guest Challenges ------------ None Game ------ Seed ArchitectWeaponsCycler Manual? 0 Play Time 01:10:07 Cumulative 1.1 hours Start 2024.10.19 @ 20:49:28 End 2024.10.19 @ 22:04:21 Sessions 1 Manual Loads 0 Difficulty Rogue Special Mode None Game No. 1 Rogue 1 Adventurer 0 Explorer 0 Win Type - Total 0 Types 0/0/0/0/0/0/0/0/0 Lore% 0 Gallery% 1 Achievement% 1 Wizard Run 0 Options --------- Layout 1 ASCII 0 Keyboard 0 Movement Vi Keybinds 0 Fullscreen 2 Font 24/Smallcaps Map View 50x35 Zoom Use 0% Tactical HUD 0 Map Filters NONE Filters NONE Steam 1 RUN: 18d600aa-c261-4d51-b600-1e4057493c59